bitfinex-derivatives/quotes_BTCF0:USTF0_20250822
["timestamp","ask_amount","ask_price","bid_price","bid_amount"]
[1755823134554,0.07718,112740.0,112730.0,0.9319]
[1755823135148,0.07718,112740.0,112730.0,0.94076164]
[1755823135351,0.10999,112740.0,112730.0,0.94076164]
[1755823135650,0.08018,112740.0,112730.0,1.2207796]
[1755823135855,0.11299,112740.0,112730.0,0.94076164]
[1755823136058,0.11299,112740.0,112730.0,1.2207796]
[1755823136857,0.41289,112740.0,112730.0,1.2207796]
[1755823139655,0.38008,112740.0,112730.0,1.2207796]
[1755823139953,0.41289,112740.0,112730.0,1.2207796]
[1755823140361,0.69290796,112740.0,112730.0,0.12900164]
[1755823140563,0.69290796,112740.0,112730.0,0.09585]
[1755823140861,1.05370796,112740.0,112730.0,0.02128]
[1755823141152,1.05370796,112740.0,112730.0,0.84333]
[1755823141358,1.05370796,112740.0,112730.0,0.93258]
[1755823141858,0.77369,112740.0,112730.0,0.93258]
[1755823142962,1.05370796,112740.0,112730.0,0.93258]
[1755823145965,1.05470796,112740.0,112730.0,0.93258]
[1755823147162,0.02956,112730.0,112720.0,0.86201028]
[1755823147357,0.39700796,112730.0,112720.0,0.94131028]
[1755823147760,0.11699,112730.0,112720.0,0.94131028]
[1755823148364,0.06294,112730.0,112720.0,1.22132824]
[1755823148565,0.04858,112730.0,112720.0,1.22132824]
[1755823148862,0.07082,112730.0,112720.0,0.94131028]
[1755823149067,0.11999,112730.0,112720.0,1.22132824]
[1755823149267,0.003,112730.0,112720.0,1.22132824]
[1755823149664,0.3029,112730.0,112720.0,1.58212824]
[1755823150165,0.41989,112730.0,112720.0,1.30211028]
[1755823150568,0.35752,112730.0,112720.0,1.30211028]
[1755823150769,0.3029,112730.0,112720.0,1.30211028]
[1755823151067,0.3029,112730.0,112720.0,1.58212824]
[1755823151268,0.32414,112730.0,112720.0,1.30211028]
[1755823151463,0.3332,112730.0,112720.0,1.58212824]
[1755823151670,0.35752,112730.0,112720.0,1.58212824]
[1755823152570,0.37188,112730.0,112720.0,1.58212824]
[1755823152862,0.41989,112730.0,112720.0,0.45618028]
[1755823153061,0.69990796,112730.0,112720.0,0.94163028]
[1755823153260,1.06070796,112730.0,112720.0,0.94163028]
[1755823154471,0.78069,112730.0,112720.0,0.94163028]
[1755823154663,1.06070796,112730.0,112720.0,0.94163028]
[1755823155164,0.69990796,112730.0,112720.0,0.09007028]
[1755823155366,1.06070796,112730.0,112720.0,0.86910028]
[1755823155561,1.06070796,112730.0,112720.0,0.89386]
[1755823155866,1.06070796,112730.0,112720.0,0.90861]
[1755823158165,1.06070796,112730.0,112720.0,0.04737]
[1755823158370,1.06370796,112730.0,112720.0,0.8348]
[1755823158767,1.34452592,112730.0,112710.0,0.0089526]
[1755823158972,0.11672,112700.0,112690.0,0.11645]
[1755823159163,0.11672,112700.0,112690.0,1.56986796]
[1755823159367,0.11672,112700.0,112690.0,1.57875562]
[1755823159569,0.11572,112700.0,112690.0,1.57875562]
[1755823159770,0.65474796,112710.0,112690.0,1.57875562]
[1755823160075,0.47752,112710.0,112700.0,0.11645]
[1755823161067,0.77742,112710.0,112700.0,0.11645]
[1755823161276,1.05743796,112710.0,112700.0,0.85923]
[1755823161770,1.05743796,112710.0,112700.0,0.89178]
[1755823162475,0.77742,112710.0,112700.0,0.85923]
[1755823162669,0.77942,112710.0,112700.0,0.89178]
[1755823162868,1.05943796,112710.0,112700.0,0.90646]
[1755823163075,1.06243796,112710.0,112700.0,0.92913]
[1755823163275,1.06243796,112710.0,112700.0,0.92901]
[1755823163670,1.06243796,112710.0,112690.0,0.00888766]
[1755823163879,0.39673796,112700.0,112690.0,0.11645]
[1755823164476,0.39673796,112700.0,112690.0,0.92889]
[1755823164975,0.69663796,112700.0,112690.0,0.92889]
[1755823165170,0.69663796,112700.0,112690.0,0.09378]
[1755823165380,1.05743796,112700.0,112690.0,0.09378]
[1755823165770,1.06043796,112700.0,112690.0,0.09378]
[1755823166275,0.98980796,112700.0,112680.0,0.05146968]
[1755823166472,0.39673796,112690.0,112680.0,0.95768968]
[1755823166863,0.11672,112690.0,112680.0,0.95768968]
[1755823167077,0.11672,112690.0,112680.0,0.95792968]
[1755823168879,0.04779,112690.0,112680.0,0.95792968]
[1755823169078,0.0833,112690.0,112680.0,1.23794764]
[1755823169278,0.11672,112690.0,112680.0,0.95840968]
[1755823169979,0.00926,112690.0,112680.0,0.95840968]
[1755823170483,0.05412,112690.0,112680.0,1.23842764]
[1755823170672,0.05412,112690.0,112680.0,0.95840968]
[1755823170870,0.05412,112690.0,112680.0,1.23842764]
[1755823171073,0.67463,112700.0,112680.0,1.23842764]
[1755823171273,0.744,112700.0,112690.0,0.39646796]
[1755823171473,0.77742,112700.0,112690.0,0.39646796]
[1755823172279,0.77842,112700.0,112690.0,0.39646796]
[1755823172676,0.745,112700.0,112690.0,0.39646796]
[1755823172871,0.67096,112700.0,112690.0,0.39646796]
[1755823173178,0.3842,112700.0,112690.0,1.20950796]
[1755823173374,0.3029,112700.0,112690.0,1.65986496]
[1755823173576,0.16451,112700.0,112690.0,1.65986496]
[1755823174176,0.16551,112700.0,112690.0,1.65986496]
[1755823175179,0.16551,112700.0,112690.0,1.72298973]
[1755823176579,0.16551,112700.0,112690.0,1.65986496]
[1755823177480,0.16551,112700.0,112690.0,1.93988292]
[1755823177682,0.16551,112700.0,112690.0,1.65986496]
[1755823178286,0.16551,112700.0,112690.0,1.85986496]
[1755823178676,0.16551,112700.0,112690.0,1.65986496]
[1755823179081,0.16551,112700.0,112690.0,1.65906496]
[1755823184993,0.18879,112700.0,112690.0,0.84602496]
[1755823185186,0.21963,112700.0,112690.0,1.65914496]
[1755823185392,0.25305,112700.0,112690.0,1.65914496]
[1755823188090,0.25305,112700.0,112690.0,1.379127]
[1755823188292,0.21963,112700.0,112690.0,1.65914496]
[1755823189194,0.19805,112700.0,112690.0,1.65914496]
[1755823189391,0.16551,112700.0,112690.0,1.65914496]
[1755823189592,0.22197,112700.0,112690.0,1.65966546]
[1755823192096,0.22197,112700.0,112690.0,1.73898254]
[1755823192395,0.28563,112700.0,112690.0,1.73874244]
[1755823192787,0.28563,112700.0,112690.0,1.65942536]
[1755823193192,0.16551,112700.0,112690.0,1.65942536]
[1755823193505,0.14851,112700.0,112690.0,2.0187604]
[1755823193804,0.14851,112700.0,112690.0,1.73874244]
[1755823194094,0.14851,112700.0,112690.0,1.65942536]
[1755823196001,0.14851,112700.0,112690.0,1.93944332]
[1755823196196,0.14851,112700.0,112690.0,1.73874244]
[1755823197401,0.14851,112700.0,112690.0,3.42602244]
[1755823197585,0.17252,112700.0,112690.0,3.42602244]
[1755823199000,0.17252,112700.0,112690.0,2.61262244]
[1755823199001,0.23615,112700.0,112690.0,2.61262244]
[1755823199204,0.26863,112700.0,112690.0,3.31403504]
[1755823200099,0.26943,112700.0,112690.0,2.15859708]
[1755823200296,0.26943,112700.0,112690.0,3.17229796]
[1755823200602,0.26943,112700.0,112690.0,3.23581534]
[1755823200905,0.26943,112700.0,112690.0,2.87501534]
[1755823201089,0.26943,112700.0,112690.0,2.06201534]
[1755823201295,0.26943,112700.0,112690.0,3.23577534]
[1755823201804,0.26943,112700.0,112690.0,3.17225796]
[1755823201995,0.26943,112700.0,112690.0,2.81145796]
[1755823202201,0.26943,112700.0,112690.0,3.17225796]
[1755823202995,0.26943,112700.0,112690.0,2.32809796]
[1755823203194,0.54944796,112700.0,112690.0,2.86076]
[1755823203595,0.26943,112700.0,112690.0,2.04808]
[1755823203795,0.26943,112700.0,112690.0,2.86068]
[1755823203796,0.54944796,112700.0,112690.0,2.86068]
[1755823203991,0.26863,112700.0,112690.0,3.14069796]
[1755823204703,0.26863,112700.0,112690.0,3.2042781]
[1755823205305,0.26863,112700.0,112690.0,2.92426014]
[1755823205508,0.26863,112700.0,112690.0,3.2042781]
[1755823207708,0.18192,112700.0,112690.0,3.2042781]
[1755823207905,0.18192,112700.0,112690.0,3.22945546]
[1755823208113,0.20497,112700.0,112690.0,3.22945546]
[1755823208704,0.20497,112700.0,112690.0,3.29299518]
[1755823208903,0.20497,112700.0,112690.0,3.22945546]
[1755823209804,0.26863,112700.0,112690.0,3.14069796]
[1755823210005,0.26863,112700.0,112690.0,3.20423901]
[1755823210204,0.26863,112700.0,112690.0,3.14069796]
[1755823211605,0.26863,112700.0,112690.0,1.54217546]
[1755823212611,0.26863,112700.0,112690.0,1.45341796]
[1755823212810,0.26863,112700.0,112690.0,1.51695539]
[1755823213909,0.26863,112700.0,112690.0,1.54217546]
[1755823214216,0.22149,112700.0,112690.0,1.54217546]
[1755823214417,0.26863,112700.0,112690.0,1.45361796]
[1755823214803,0.26863,112700.0,112690.0,1.51716325]
[1755823215614,0.26863,112700.0,112690.0,1.45361796]
[1755823217917,0.26863,112700.0,112690.0,1.54237546]
[1755823218117,0.26863,112700.0,112690.0,1.45361796]
[1755823218819,0.17252,112700.0,112690.0,1.45361796]
[1755823219221,0.19385,112700.0,112690.0,1.45361796]
[1755823219519,0.20351,112700.0,112690.0,1.54237536]
[1755823220317,0.23828,112700.0,112690.0,1.45361796]
[1755823221017,0.23828,112700.0,112690.0,1.54237546]
[1755823221317,0.20351,112700.0,112690.0,1.54237546]
[1755823221620,0.19385,112700.0,112690.0,1.54237546]
[1755823222418,0.14851,112700.0,112690.0,1.54237546]
[1755823223018,0.14851,112700.0,112690.0,1.62169254]
[1755823223517,0.14851,112700.0,112690.0,1.62249254]
[1755823223822,0.14851,112700.0,112690.0,1.54317546]
[1755823226020,0.14851,112700.0,112690.0,3.23065546]
[1755823227121,0.14851,112700.0,112690.0,3.34065796]
[1755823227919,0.17307,112700.0,112690.0,3.34065796]
[1755823232022,0.14851,112700.0,112690.0,3.34065796]
[1755823232618,0.14851,112700.0,112690.0,3.88627592]
[1755823237925,0.13468235,112700.0,112690.0,3.88627592]
[1755823238724,0.13468235,112700.0,112690.0,4.38627592]
[1755823240227,0.04543249,112700.0,112690.0,4.38627592]
[1755823241431,0.04543249,112700.0,112690.0,4.10625796]
[1755823241631,0.06999249,112700.0,112690.0,4.10625796]
[1755823242630,0.06999249,112700.0,112690.0,4.25345796]
[1755823243431,0.04543249,112700.0,112690.0,4.25345796]
[1755823243631,0.04543249,112700.0,112690.0,4.53347592]
[1755823245230,0.02490411,112700.0,112690.0,4.42267342]
[1755823245436,0.13084,112700.0,112690.0,4.42267342]
[1755823246336,0.13084,112700.0,112690.0,4.53384396]
[1755823247535,0.13084,112700.0,112690.0,4.97704396]
[1755823249134,0.15418,112700.0,112690.0,4.86587342]
[1755823250429,0.15418,112700.0,112690.0,4.97704396]
[1755823250841,0.15418,112700.0,112690.0,4.97648396]
[1755823251028,0.18691,112700.0,112690.0,4.6964658]
[1755823251228,0.17725,112700.0,112690.0,4.6964658]
[1755823251736,0.17725,112700.0,112690.0,4.97648376]
[1755823252439,0.17725,112700.0,112690.0,4.47648376]
[1755823253536,0.15418,112700.0,112690.0,4.03328376]
[1755823254236,0.17725,112700.0,112690.0,4.03328376]
[1755823254631,0.18691,112700.0,112690.0,4.03328376]
[1755823254935,0.25145,112700.0,112690.0,2.7938258]
[1755823255136,0.25145,112700.0,112690.0,3.49485526]
[1755823256637,0.25145,112700.0,112690.0,3.6060258]
[1755823257542,0.25145,112700.0,112690.0,2.7050685]
[1755823257834,0.25145,112700.0,112690.0,3.5172685]
[1755823258038,0.25145,112700.0,112690.0,3.49485526]
[1755823259238,0.25145,112700.0,112690.0,3.6060258]
[1755823260536,0.21712,112700.0,112690.0,3.6060258]
[1755823260742,0.01097584,112720.0,112710.0,0.1927216]
[1755823260937,0.07803584,112720.0,112710.0,2.36606876]
[1755823261139,0.07803584,112720.0,112710.0,2.28651752]
[1755823261339,0.08163584,112720.0,112710.0,2.39768806]
[1755823262737,0.10497584,112720.0,112710.0,2.39768806]
[1755823262937,0.11197584,112720.0,112710.0,2.39868806]
[1755823264146,0.12657584,112720.0,112710.0,2.39868806]
[1755823265244,0.12657584,112720.0,112710.0,2.66428806]
[1755823266346,0.12657584,112720.0,112710.0,1.85212806]
[1755823266540,0.12657584,112720.0,112710.0,2.66424806]
[1755823267247,0.09224584,112720.0,112710.0,2.66424806]
[1755823267543,0.12657584,112720.0,112710.0,2.66424806]
[1755823271355,0.12657584,112720.0,112710.0,2.55307752]
[1755823273666,0.09224584,112720.0,112710.0,2.55307752]
[1755823273869,0.07764584,112720.0,112710.0,2.55307752]
[1755823279261,0.07764584,112720.0,112710.0,4.05307752]
[1755823281362,0.07764584,112720.0,112710.0,4.16424806]
[1755823281569,0.05701,112720.0,112710.0,4.16424806]
[1755823281768,0.03394,112720.0,112710.0,4.16424806]
[1755823282766,0.01387,112740.0,112720.0,0.0887268]
[1755823282965,0.08983079,112740.0,112730.0,2.06571565]
[1755823283161,0.04826,112740.0,112730.0,1.98619386]
[1755823283564,0.08231,112740.0,112730.0,2.06568114]
[1755823283964,0.09331,112740.0,112730.0,2.06668114]
[1755823284872,0.011,112740.0,112730.0,2.3466991]
[1755823285068,0.011,112740.0,112730.0,2.26721182]
[1755823285474,0.011,112740.0,112730.0,2.33813524]
[1755823285975,0.01,112740.0,112730.0,2.60373524]
[1755823286175,0.01,112740.0,112730.0,2.71490578]
[1755823289079,0.004,112740.0,112730.0,2.89135168]
[1755823290181,0.002,112740.0,112730.0,2.89135168]
[1755823290381,0.004,112740.0,112730.0,2.89135168]
[1755823293781,0.00127868,112740.0,112730.0,2.89135168]
[1755823293979,1e-08,112740.0,112730.0,2.89135168]
[1755823294886,0.02329,112760.0,112750.0,0.47536816]
[1755823295078,0.02329,112760.0,112750.0,2.35375433]
[1755823295385,0.06717,112760.0,112750.0,2.35375433]
[1755823296085,0.06917,112760.0,112750.0,2.36262041]
[1755823296379,0.07217,112760.0,112750.0,2.36262041]
[1755823296889,0.02629,112760.0,112750.0,2.36262041]
[1755823297087,0.02829,112760.0,112750.0,2.36262041]
[1755823297279,0.02829,112760.0,112750.0,2.28331424]
[1755823297886,0.02829,112760.0,112750.0,2.36262041]
[1755823298086,0.03812,112760.0,112750.0,2.36262041]
[1755823300890,0.005,112760.0,112750.0,2.36262041]
[1755823301589,0.02829,112760.0,112750.0,2.36262041]
[1755823302089,0.03812,112760.0,112750.0,2.36262041]
[1755823302989,0.03812,112760.0,112750.0,2.34669696]
[1755823303291,0.03812,112760.0,112750.0,2.25798676]
[1755823303791,0.03812,112760.0,112750.0,2.34669736]
[1755823305390,0.03812,112760.0,112750.0,2.3467016]
[1755823305891,0.03812,112760.0,112750.0,2.257991]
[1755823306390,0.03812,112760.0,112750.0,2.28331464]
[1755823306892,0.03812,112760.0,112750.0,2.34670671]
[1755823307091,0.02829,112760.0,112750.0,2.34670671]
[1755823307292,0.005,112760.0,112750.0,2.34670671]
[1755823307793,0.02769,112760.0,112750.0,2.34670671]
[1755823308293,0.02769,112760.0,112750.0,2.62757947]
[1755823308595,0.02769,112760.0,112750.0,2.5641874]
[1755823309290,0.005,112760.0,112750.0,2.5641874]
[1755823310697,0.005,112760.0,112750.0,2.2985874]
[1755823310896,0.02769,112760.0,112750.0,2.2985874]
[1755823312197,0.06113,112760.0,112750.0,1.64898608]
[1755823312391,0.07105,112760.0,112750.0,2.2098768]
[1755823313100,0.07105,112760.0,112750.0,2.28918297]
[1755823313490,0.03761,112760.0,112750.0,2.28918297]
[1755823314000,0.12298,112760.0,112750.0,1.72801225]
[1755823314201,0.40342536,112760.0,112750.0,2.00845761]
[1755823314997,0.12298,112760.0,112750.0,2.00845761]
[1755823316302,0.12298,112760.0,112750.0,1.19692667]
[1755823316494,0.40349442,112760.0,112750.0,0.51897225]
[1755823316698,0.40349442,112760.0,112750.0,0.90885225]
[1755823317598,0.42929442,112760.0,112750.0,0.82954608]
[1755823317789,0.42929442,112760.0,112750.0,0.00886608]
[1755823317993,0.42929442,112760.0,112750.0,0.81156]
[1755823318296,0.79009442,112760.0,112740.0,1.84619938]
[1755823318501,0.75929442,112750.0,112740.0,0.11297617]
[1755823318705,0.75929442,112750.0,112740.0,0.92453617]
[1755823318899,0.75929442,112750.0,112740.0,0.84523]
[1755823319097,0.75929442,112750.0,112740.0,0.92453617]
[1755823319596,1.05919442,112750.0,112740.0,0.93344788]
[1755823319998,0.75929442,112750.0,112740.0,0.93344788]
[1755823320305,1.06019442,112750.0,112740.0,0.97116788]
[1755823320695,1.06019442,112750.0,112740.0,0.92562788]
[1755823320895,1.06019442,112750.0,112740.0,0.89977788]
[1755823321202,1.06019442,112750.0,112740.0,0.82047171]
[1755823321598,1.06219442,112750.0,112740.0,0.89977788]
[1755823321993,1.06219442,112750.0,112740.0,0.82047171]
[1755823322404,1.06219442,112750.0,112740.0,0.81152]
[1755823322405,1.06299442,112750.0,112740.0,0.81152]
[1755823323499,0.99277442,112750.0,112730.0,0.89090617]
[1755823323698,0.75929442,112740.0,112730.0,0.88402513]
[1755823324099,0.75929442,112740.0,112730.0,0.87516589]
[1755823324698,1.05919442,112740.0,112730.0,0.87516589]
[1755823325201,1.05919442,112740.0,112730.0,0.8116]
[1755823325404,0.11798,112730.0,112720.0,0.1680435]
[1755823325702,0.75929442,112730.0,112720.0,0.9796035]
[1755823325904,0.75929442,112730.0,112720.0,1.0026735]
[1755823326103,0.75929442,112730.0,112720.0,0.93910761]
[1755823326792,0.75929442,112730.0,112720.0,0.94110761]
[1755823327396,0.76229442,112730.0,112720.0,0.92500819]
[1755823327598,0.76529442,112730.0,112720.0,0.91141819]
[1755823328001,0.76529442,112730.0,112720.0,0.88989819]
[1755823328305,0.76529442,112730.0,112720.0,0.90348819]
[1755823328506,1.06519442,112730.0,112720.0,0.92500819]
[1755823329108,1.06519442,112730.0,112720.0,0.94807819]
[1755823329708,1.06519442,112730.0,112720.0,0.91141819]
[1755823330100,1.06519442,112730.0,112720.0,0.89192058]
[1755823330301,1.06519442,112730.0,112720.0,0.90551058]
[1755823330901,1.06519442,112730.0,112720.0,0.92858058]
[1755823331602,1.06619442,112730.0,112720.0,0.92858058]
[1755823332304,1.06419442,112730.0,112720.0,0.92858058]
[1755823332807,1.22119442,112730.0,112720.0,0.92858058]
[1755823333011,1.22019442,112730.0,112720.0,0.92858058]
[1755823333704,0.90624,112730.0,112720.0,1.209095]
[1755823333904,0.93968,112730.0,112720.0,1.209095]
[1755823334313,0.93968,112730.0,112720.0,0.92858058]
[1755823336112,0.90624,112730.0,112720.0,0.92858058]
[1755823336315,0.35066,112730.0,112720.0,1.209095]
[1755823336515,0.42088,112730.0,112720.0,1.209095]
[1755823339110,0.40711,112730.0,112720.0,1.209095]
[1755823339316,0.3841,112730.0,112720.0,1.209095]
[1755823340311,0.35066,112730.0,112720.0,1.209095]
[1755823341020,0.38465,112730.0,112720.0,1.209095]
[1755823341416,0.38465,112730.0,112720.0,1.569895]
[1755823343232,0.40776,112730.0,112720.0,1.569895]
[1755823343633,0.42271,112730.0,112720.0,1.569895]
[1755823344930,0.70322442,112730.0,112720.0,0.92878058]
[1755823346330,0.42271,112730.0,112720.0,0.92878058]
[1755823352941,0.42271,112730.0,112720.0,0.99234647]
[1755823355535,0.37377,112730.0,112720.0,1.27286089]
[1755823355733,0.3029,112730.0,112720.0,1.2980292]
[1755823356842,0.3029,112730.0,112720.0,1.6588292]
[1755823357946,0.3029,112730.0,112720.0,1.570095]
[1755823360045,0.3029,112730.0,112720.0,1.835695]
[1755823362541,0.32422,112730.0,112720.0,1.835695]
[1755823363141,0.36779,112730.0,112720.0,1.835695]
[1755823364444,0.3338,112730.0,112720.0,1.835695]
[1755823366350,0.3328,112730.0,112720.0,1.835695]
[1755823368450,0.3318,112730.0,112720.0,1.55518058]
[1755823368654,0.3328,112730.0,112720.0,1.835695]
[1755823370051,0.36746,112730.0,112720.0,1.835695]
[1755823370353,0.36746,112730.0,112720.0,2.11647612]
[1755823370548,0.3328,112730.0,112720.0,2.11647612]
[1755823371154,0.36746,112730.0,112720.0,2.11647612]
[1755823371951,0.40762,112730.0,112720.0,2.11647612]
[1755823372157,0.70317777,112730.0,112720.0,1.19430058]
[1755823372348,0.70317777,112730.0,112720.0,1.47494835]
[1755823374358,0.42253,112730.0,112720.0,1.19430058]
[1755823376655,0.42253,112730.0,112720.0,1.27360675]
[1755823377056,0.70322939,112730.0,112720.0,1.27360675]
[1755823377361,0.70322939,112730.0,112720.0,1.19430058]
[1755823377759,0.70322939,112730.0,112720.0,0.92870058]
[1755823377760,0.42253,112730.0,112720.0,0.92870058]
[1755823377959,0.42253,112730.0,112720.0,1.20939997]
[1755823378361,0.42253,112730.0,112720.0,1.28870614]
[1755823378661,0.42253,112730.0,112720.0,1.20939997]
[1755823381061,0.3019,112730.0,112720.0,1.20939997]
[1755823381260,0.32506,112730.0,112720.0,1.28870614]
[1755823381457,0.3019,112730.0,112720.0,1.28870614]
[1755823381861,0.3019,112730.0,112720.0,1.73824034]
[1755823382250,0.22383,112730.0,112720.0,1.73904034]
[1755823382462,0.19688,112730.0,112720.0,1.73904034]
[1755823382966,0.19688,112730.0,112720.0,1.65973417]
[1755823383266,0.19688,112730.0,112720.0,1.73926155]
[1755823383456,0.19688,112730.0,112720.0,1.65973417]
[1755823383656,0.19688,112730.0,112720.0,1.92533417]
[1755823386060,0.19688,112730.0,112720.0,1.92453417]
[1755823386267,0.22128,112730.0,112720.0,1.92453417]
[1755823387367,0.22128,112730.0,112720.0,1.83579997]
[1755823387563,0.22128,112730.0,112720.0,1.57143997]
[1755823387958,0.22128,112730.0,112720.0,1.66017407]
[1755823389967,0.22128,112730.0,112720.0,1.68008971]
[1755823391475,0.24444,112730.0,112720.0,1.68008971]
[1755823391675,0.24444,112730.0,112720.0,1.68008981]
[1755823392469,0.24444,112730.0,112720.0,1.75952192]
[1755823395070,0.2791,112730.0,112720.0,1.39008833]
[1755823395369,0.31946,112730.0,112720.0,1.67078772]
[1755823396265,0.31946,112730.0,112720.0,1.95132671]
[1755823396668,0.31946,112730.0,112720.0,2.04006091]
[1755823398369,0.31946,112730.0,112720.0,2.30566091]
[1755823398558,0.31946,112730.0,112720.0,0.84276833]
[1755823398761,0.31946,112730.0,112720.0,2.21620671]
[1755823399572,0.30455,112730.0,112720.0,2.21620671]
[1755823399773,0.26989,112730.0,112720.0,2.21620671]
[1755823400163,0.30292,112730.0,112720.0,2.21620671]
[1755823400963,0.30292,112730.0,112720.0,1.65496833]
[1755823401263,0.30292,112730.0,112720.0,2.21620671]
[1755823402971,0.26989,112730.0,112720.0,2.21620671]
[1755823403475,0.26989,112730.0,112720.0,2.1367746]
[1755823404972,0.26989,112730.0,112720.0,1.57553622]
[1755823405168,0.30292,112730.0,112720.0,2.1367746]
[1755823406567,0.26989,112730.0,112720.0,2.1367746]
[1755823407764,0.30292,112730.0,112720.0,2.1367746]
[1755823407961,0.26989,112730.0,112720.0,2.1367746]
[1755823408971,0.26989,112730.0,112720.0,1.65502417]
[1755823409175,0.26989,112730.0,112720.0,2.21626255]
[1755823409370,0.30292,112730.0,112720.0,2.21626255]
[1755823409869,0.26989,112730.0,112720.0,2.21626255]
[1755823411074,0.25413,112730.0,112720.0,2.21626255]
[1755823412169,0.25413,112730.0,112720.0,2.1367746]
[1755823413577,0.28716,112730.0,112720.0,1.57553622]
[1755823413875,0.31802,112730.0,112720.0,2.1367746]
[1755823416580,0.30316,112730.0,112720.0,2.1367746]
[1755823418480,0.31802,112730.0,112720.0,2.1367746]
[1755823418876,0.31802,112730.0,112720.0,1.57553622]
[1755823419076,0.31802,112730.0,112720.0,2.1367746]
[1755823421578,0.31802,112730.0,112720.0,1.3005546]
[1755823421882,0.31802,112730.0,112720.0,2.1179146]
[1755823426985,0.31802,112730.0,112720.0,2.19747674]
[1755823427881,0.31802,112730.0,112720.0,1.63623836]
[1755823428082,0.31802,112730.0,112720.0,2.19747674]
[1755823428588,0.25413,112730.0,112720.0,2.19747674]
[1755823431689,0.31537,112730.0,112720.0,2.19747674]
[1755823433589,0.31537,112730.0,112720.0,2.1179146]
[1755823437990,0.22128,112730.0,112720.0,2.1179146]
[1755823438289,0.19688,112730.0,112720.0,2.1179146]
[1755823439792,0.22183,112730.0,112720.0,2.1179146]
[1755823440495,0.25298,112730.0,112720.0,2.1179146]
[1755823440793,0.31422,112730.0,112720.0,2.1179146]
[1755823443394,0.30028,112730.0,112720.0,2.1179146]
[1755823443698,0.26854,112730.0,112720.0,2.1179146]
[1755823444096,0.25298,112730.0,112720.0,2.1179146]
[1755823448000,0.25298,112730.0,112720.0,1.3005546]
[1755823448200,0.31422,112730.0,112720.0,2.1148346]
[1755823449504,0.23162,112730.0,112720.0,2.1148346]
[1755823449704,0.22183,112730.0,112720.0,2.1148346]
[1755823453309,0.25298,112730.0,112720.0,2.1148346]
[1755823453499,0.31422,112730.0,112720.0,2.1148346]
[1755823455611,0.11934,112730.0,112720.0,2.1148346]
[1755823456013,0.31424,112730.0,112720.0,2.1148346]
[1755823457712,0.31424,112730.0,112720.0,2.1158346]
[1755823457713,0.31324,112730.0,112720.0,2.1158346]
[1755823457908,0.31224,112730.0,112720.0,2.1158346]
[1755823458212,0.26656,112730.0,112720.0,2.1148346]
[1755823458415,0.22085,112730.0,112720.0,2.1148346]
[1755823458915,0.22185,112730.0,112720.0,2.31473924]
[1755823459115,0.22185,112730.0,112720.0,2.39433126]
[1755823459316,0.22185,112730.0,112720.0,2.28316072]
[1755823459615,0.22185,112730.0,112720.0,2.19442662]
[1755823460612,0.1969,112730.0,112720.0,2.56377991]
[1755823461210,0.18843443,112730.0,112720.0,2.56457991]
[1755823461513,0.18843443,112730.0,112720.0,2.48498789]
[1755823461812,0.18643443,112730.0,112720.0,2.48498789]
[1755823462120,0.18643443,112730.0,112720.0,2.48598789]
[1755823462319,0.18643443,112730.0,112720.0,2.5973535]
[1755823465208,0.16328324,112730.0,112720.0,2.5973535]
[1755823466409,0.04451323,112730.0,112720.0,2.5973535]
[1755823466614,0.04583,112750.0,112730.0,0.2661671]
[1755823466814,0.04583,112750.0,112740.0,1.81512246]
[1755823467014,0.05521,112750.0,112740.0,1.81512246]
[1755823467521,0.11993,112750.0,112740.0,1.83485442]
[1755823467911,0.12093,112750.0,112740.0,1.83485442]
[1755823468115,0.12293,112750.0,112740.0,1.83485442]
[1755823468725,0.12393,112750.0,112740.0,1.83485442]
[1755823469427,0.12193,112750.0,112740.0,1.83485442]
[1755823469929,0.11993,112750.0,112740.0,1.83485442]
[1755823470130,0.11993,112750.0,112740.0,1.83585442]
[1755823470630,0.12093,112750.0,112740.0,1.83485442]
[1755823471833,0.12193,112750.0,112740.0,1.83485442]
[1755823472333,0.12193,112750.0,112740.0,2.10045442]
[1755823473430,0.07312,112750.0,112740.0,1.53921604]
[1755823473635,0.07312,112750.0,112740.0,2.02097034]
[1755823474037,0.05721,112750.0,112740.0,2.02097034]
[1755823475039,0.12193,112750.0,112740.0,2.02097034]
[1755823476341,0.12193,112750.0,112740.0,1.45973196]
[1755823476542,0.12193,112750.0,112740.0,2.02097034]
[1755823477142,0.12193,112750.0,112740.0,2.10045442]
[1755823478931,0.07312,112750.0,112740.0,2.10045442]
[1755823479336,0.07312,112750.0,112740.0,1.53921604]
[1755823479644,0.10732,112750.0,112740.0,2.10045442]
[1755823479846,0.07312,112750.0,112740.0,2.10045442]
[1755823480344,0.07312,112750.0,112740.0,2.18917282]
[1755823481443,0.10732,112750.0,112740.0,2.18917282]
[1755823482545,0.10732,112750.0,112740.0,1.62793444]
[1755823482736,0.10732,112750.0,112740.0,2.18917282]
[1755823482936,0.07312,112750.0,112740.0,2.18917282]
[1755823483139,0.07312,112750.0,112740.0,2.02097034]
[1755823483344,0.12193,112750.0,112740.0,2.02097034]
[1755823487356,0.12017,112750.0,112740.0,2.02097034]
[1755823487551,0.12017,112750.0,112740.0,2.10968874]
[1755823488158,0.10556,112750.0,112740.0,2.10968874]
[1755823488359,0.10556,112750.0,112740.0,2.02097034]
[1755823490156,0.12023,112750.0,112740.0,2.02097034]
[1755823490764,0.12023,112750.0,112740.0,1.66017034]
[1755823490956,0.12023,112750.0,112740.0,2.02097034]
[1755823491357,0.12023,112750.0,112740.0,1.45973196]
[1755823491658,0.12023,112750.0,112740.0,2.10045442]
[1755823491865,0.12023,112750.0,112740.0,2.02097034]
[1755823492266,0.12023,112750.0,112740.0,2.10045442]
[1755823494465,0.12023,112750.0,112740.0,2.18917282]
[1755823494765,0.07312,112750.0,112740.0,2.18917282]
[1755823495465,0.12023,112750.0,112740.0,2.18917282]
[1755823496366,0.12023,112750.0,112740.0,2.10968874]
[1755823496566,0.12023,112750.0,112740.0,2.18924979]
[1755823496958,0.08779,112750.0,112740.0,2.18924979]
[1755823497359,0.07312,112750.0,112740.0,2.18924979]
[1755823497961,0.10556,112750.0,112740.0,1.53929301]
[1755823498265,0.10556,112750.0,112740.0,2.18924979]
[1755823499863,0.07312,112750.0,112740.0,2.18924979]
[1755823500663,0.02681,112750.0,112740.0,2.18924979]